fUST/lending_fUST_20251201
["ID","MTS","AMOUNT","RATE_DAILY","PERIOD"]
[395214890,1764547852918,-500.0,0.00014246,2]
[395214891,1764547852928,-500.0,0.00014246,2]
[395214892,1764547852940,-500.0,0.00014246,2]
[395214893,1764547852950,-1229.64,0.00014246,2]
[395214894,1764547852961,-500.0,0.00014246,2]
[395214895,1764547852970,-500.0,0.00014246,2]
[395214896,1764547852980,-500.0,0.00014246,2]
[395214897,1764547852990,-1653.8,0.00014246,2]
[395214898,1764547853000,-500.0,0.00014246,2]
[395214899,1764547853011,-500.0,0.00014246,2]
[395214900,1764547853023,-952.37,0.00014246,2]
[395214901,1764547853030,-500.0,0.00014246,2]
[395214902,1764547853039,-500.0,0.00014246,2]
[395214903,1764547853049,-1065.54,0.00014246,2]
[395214904,1764547853062,-500.0,0.00014246,2]
[395214905,1764547853072,-503.73948253,0.00014246,2]
[395214906,1764547853082,-500.0,0.00014246,2]
[395214907,1764547853093,-500.0,0.00014246,2]
[395214908,1764547853103,-500.0,0.00014246,2]
[395214909,1764547853114,-1163.63,0.00014246,2]
[395214910,1764547853125,-500.0,0.00014246,2]
[395214911,1764547853137,-218.85156394,0.00014246,2]
[395214912,1764547853147,-774.67,0.00014246,2]
[395214913,1764547853157,-500.0,0.00014246,2]
[395214914,1764547853167,-500.0,0.00014246,2]
[395214915,1764547853177,-500.0,0.00014246,2]
[395214916,1764547853188,-500.0,0.00014246,2]
[395214917,1764547853198,-2289.13,0.00014246,2]
[395214918,1764547853207,-500.0,0.00014246,2]
[395214919,1764547853217,-690.1,0.00014246,2]
[395214920,1764547853227,-500.0,0.00014246,2]
[395214921,1764547853237,-500.0,0.00014246,2]
[395214922,1764547853247,-1102.2,0.00014246,2]
[395214923,1764547853257,-500.0,0.00014246,2]
[395214924,1764547853267,-500.0,0.00014246,2]
[395214925,1764547853277,-884.13,0.00014246,2]
[395214926,1764547853287,-700.77,0.00014246,2]
[395214927,1764547853296,-670.44,0.00014246,2]
[395214928,1764547853306,-500.0,0.00014246,2]
[395214929,1764547853317,-500.0,0.00014246,2]
[395214930,1764547853327,-500.0,0.00014246,2]
[395214931,1764547853338,-617.62,0.00014246,2]
[395214932,1764547853348,-500.0,0.00014246,2]
[395214933,1764547853358,-500.0,0.00014246,2]
[395214934,1764547853369,-500.0,0.00014246,2]
[395214935,1764547853379,-527.06,0.00014246,2]
[395214936,1764547853390,-3547.43,0.00014246,2]
[395214937,1764547853401,-831.61,0.00014246,2]
[395214938,1764547853412,-500.0,0.00014246,2]
[395214939,1764547853421,-500.0,0.00014246,2]
[395214940,1764547853431,-500.0,0.00014246,2]
[395214941,1764547853442,-788.9,0.00014246,2]
[395214942,1764547853452,-500.0,0.00014246,2]
[395214943,1764547853462,-500.0,0.00014246,2]
[395214944,1764547853472,-871.61,0.00014246,2]
[395214945,1764547853482,-500.0,0.00014246,2]
[395214946,1764547853492,-500.0,0.00014246,2]
[395214947,1764547853503,-500.0,0.00014246,2]
[395214948,1764547853513,-500.0,0.00014246,2]
[395214949,1764547853524,-500.0,0.00014246,2]
[395214950,1764547853535,-1956.35,0.00014246,2]
[395214951,1764547853545,-1591.01,0.00014246,2]
[395214952,1764547853555,-500.0,0.00014246,2]
[395214953,1764547853565,-500.0,0.00014246,2]
[395214954,1764547853575,-546.72,0.00014246,2]
[395214955,1764547853586,-500.0,0.00014246,2]
[395214956,1764547853596,-955.74,0.00014246,2]
[395214957,1764547853608,-500.0,0.00014246,2]
[395214958,1764547853619,-500.0,0.00014246,2]
[395214959,1764547853630,-500.0,0.00014246,2]
[395214960,1764547853641,-846.35,0.00014246,2]
[395214961,1764547853653,-500.0,0.00014246,2]
[395214962,1764547853665,-1126.27,0.00014246,2]
[395214963,1764547853676,-500.0,0.00014246,2]
[395214964,1764547853691,-500.0,0.00014246,2]
[395214965,1764547853703,-500.0,0.00014246,2]
[395214966,1764547853714,-500.0,0.00014246,2]
[395214967,1764547853724,-500.0,0.00014246,2]
[395214968,1764547853735,-500.0,0.00014246,2]
[395214969,1764547853746,-930.88,0.00014246,2]
[395214970,1764547853756,-500.0,0.00014246,2]
[395214971,1764547853766,-375.38402152,0.00014246,2]
[395214972,1764547853777,-502.48317589,0.00014246,2]
[395214973,1764547853786,-500.0,0.00014246,2]
[395214974,1764547853796,-1330.81,0.00014246,2]
[395214975,1764547853808,-500.0,0.00014246,2]
[395214976,1764547853819,-1962.8,0.00014246,2]
[395214977,1764547853829,-500.0,0.00014246,2]
[395214978,1764547853839,-647.63,0.00014246,2]
[395214979,1764547853850,-500.0,0.00014246,2]
[395214980,1764547853860,-18901.83,0.00014246,2]
[395214981,1764547853870,-500.0,0.00014246,2]
[395214982,1764547853880,-538.19,0.00014246,2]
[395214983,1764547853890,-926.83,0.00014246,2]
[395214984,1764547853900,-1877.1,0.00014246,2]
[395214985,1764547853910,-500.0,0.00014246,2]
[395214986,1764547853920,-2465.66,0.00014246,2]
[395214987,1764547853931,-500.0,0.00014246,2]
[395214988,1764547853943,-500.0,0.00014246,2]
[395214989,1764547853954,-500.0,0.00014246,2]
[395214990,1764547853964,-500.0,0.00014246,2]
[395214991,1764547853974,-1103.14,0.00014246,2]
[395214992,1764547853984,-500.0,0.00014246,2]
[395214993,1764547853994,-500.0,0.00014246,2]
[395214994,1764547854004,-500.0,0.00014246,2]
[395214995,1764547854018,-500.0,0.00014246,2]
[395214996,1764547854028,-500.0,0.00014246,2]
[395214997,1764547854038,-946.93,0.00014246,2]
[395214998,1764547854048,-500.0,0.00014246,2]
[395214999,1764547854059,-2099.32,0.00014246,2]
[395215000,1764547854069,-523.08323748,0.00014246,2]
[395215001,1764547854079,-500.0,0.00014246,2]
[395215002,1764547854088,-500.0,0.00014246,2]
[395215003,1764547854098,-1092.88,0.00014246,2]
[395215004,1764547854108,-1396.65,0.00014246,2]
[395215005,1764547854118,-500.0,0.00014246,2]
[395215006,1764547854129,-500.0,0.00014246,2]
[395215007,1764547854138,-500.0,0.00014246,2]
[395215008,1764547854148,-500.0,0.00014246,2]
[395215009,1764547854158,-500.0,0.00014246,2]
[395215010,1764547854168,-727.4,0.00014246,2]
[395215011,1764547854178,-500.0,0.00014246,2]
[395215012,1764547854191,-500.0,0.00014246,2]
[395215013,1764547854200,-500.0,0.00014246,2]
[395215014,1764547854210,-588.91075955,0.00014246,2]
[395215015,1764547854219,-1723.58,0.00014246,2]
[395215016,1764547854229,-3444.94,0.00014246,2]
[395215017,1764547854239,-4746.48,0.00014246,2]
[395215018,1764547854249,-500.0,0.00014246,2]
[395215019,1764547854259,-7720.79,0.00014246,2]
[395215020,1764547854269,-500.0,0.00014246,2]
[395215021,1764547854279,-500.0,0.00014246,2]
[395215022,1764547854289,-500.0,0.00014246,2]
[395215023,1764547854298,-500.0,0.00014246,2]
[395215024,1764547854308,-500.0,0.00014246,2]
[395215025,1764547854318,-565.84387398,0.00014246,2]
[395215026,1764547854328,-751.29,0.00014246,2]
[395215027,1764547854339,-500.0,0.00014246,2]
[395215028,1764547854349,-17065.91,0.00014246,2]
[395215029,1764547854360,-671.24,0.00014246,2]
[395215030,1764547854370,-500.0,0.00014246,2]
[395215031,1764547854380,-694.26,0.00014246,2]
[395215032,1764547854390,-1136.2,0.00014246,2]
[395215033,1764547854400,-500.0,0.00014246,2]
[395215034,1764547854410,-1743.96,0.00014246,2]
[395215035,1764547854420,-636.16,0.00014246,2]
[395215036,1764547854430,-1367.62,0.00014246,2]
[395215037,1764547854442,-611.96,0.00014246,2]
[395215038,1764547854452,-500.0,0.00014246,2]
[395215039,1764547854461,-1120.27,0.00014246,2]
[395215040,1764547854532,-500.0,0.00014246,2]
[395215041,1764547854542,-500.0,0.00014246,2]
[395215042,1764547854552,-500.0,0.00014246,2]
[395215043,1764547854561,-500.0,0.00014246,2]
[395215044,1764547854571,-500.0,0.00014246,2]
[395215045,1764547854581,-791.39,0.00014246,2]
[395215046,1764547854590,-500.0,0.00014246,2]
[395215047,1764547854599,-1726.06,0.00014246,2]
[395215048,1764547854608,-4332.05,0.00014246,2]
[395215049,1764547854618,-1547.89,0.00014246,2]
[395215050,1764547854628,-929.72,0.00014246,2]
[395215051,1764547854638,-500.0,0.00014246,2]
[395215052,1764547854647,-1617.93,0.00014246,2]
[395215053,1764547854657,-500.0,0.00014246,2]
[395215054,1764547854667,-500.0,0.00014246,2]
[395215055,1764547854677,-500.0,0.00014246,2]
[395215056,1764547854690,-926.66,0.00014246,2]
[395215057,1764547854703,-500.0,0.00014246,2]
[395215058,1764547854713,-3646.16,0.00014246,2]
[395215059,1764547854724,-1809.43,0.00014246,2]
[395215060,1764547854734,-2240.8,0.00014246,2]
[395215061,1764547854744,-500.0,0.00014246,2]
[395215062,1764547854754,-6168.37,0.00014246,2]
[395215063,1764547854764,-500.0,0.00014246,2]
[395215064,1764547854773,-500.0,0.00014246,2]
[395215065,1764547854783,-500.0,0.00014246,2]
[395215066,1764547854792,-1223.9,0.00014246,2]
[395215067,1764547854802,-624.33,0.00014246,2]
[395215068,1764547854811,-3000.95,0.00014246,2]
[395215069,1764547854821,-500.0,0.00014246,2]
[395215070,1764547854830,-1817.5,0.00014246,2]
[395215071,1764547854840,-500.0,0.00014246,2]
[395215072,1764547854849,-871.05,0.00014246,2]
[395215073,1764547854859,-500.0,0.00014246,2]
[395215074,1764547854868,-2947.59,0.00014246,2]
[395215075,1764547854877,-1576.87,0.00014246,2]
[395215076,1764547854887,-500.0,0.00014246,2]
[395215077,1764547854896,-500.0,0.00014246,2]
[395215078,1764547854905,-500.0,0.00014246,2]
[395215079,1764547854914,-1139.11,0.00014246,2]
[395215080,1764547854924,-500.0,0.00014246,2]
[395215081,1764547854933,-500.0,0.00014246,2]
[395215082,1764547854945,-500.0,0.00014246,2]
[395215083,1764547854954,-3342.48,0.00014246,2]
[395215084,1764547854964,-500.0,0.00014246,2]
[395215085,1764547854974,-801.41,0.00014246,2]
[395215086,1764547854984,-500.0,0.00014246,2]
[395215087,1764547854993,-1908.36,0.00014246,2]
[395215088,1764547855004,-595.07171693,0.00014246,2]
[395215089,1764547855016,-500.0,0.00014246,2]
[395215090,1764547855028,-1153.9,0.00014246,2]
[395215091,1764547855038,-500.0,0.00014246,2]
[395215092,1764547855048,-500.0,0.00014246,2]
[395215093,1764547855059,-500.0,0.00014246,2]
[395215094,1764547855069,-582.81,0.00014246,2]
[395215095,1764547855079,-903.16,0.00014246,2]
[395215096,1764547855088,-1011.14,0.00014246,2]
[395215097,1764547855099,-500.0,0.00014246,2]
[395215098,1764547855109,-570.4,0.00014246,2]
[395215099,1764547855120,-1765.06,0.00014246,2]
[395215100,1764547855130,-2454.71,0.00014246,2]
[395215101,1764547855140,-500.0,0.00014246,2]
[395215102,1764547855150,-790.07,0.00014246,2]
[395215103,1764547855160,-241.00809144,0.00014246,2]
[395215104,1764547855171,-3314.57,0.00014246,2]
[395215105,1764547855180,-500.0,0.00014246,2]
[395215106,1764547855194,-2219.39,0.00014246,2]
[395215107,1764547855204,-1875.88,0.00014246,2]
[395215108,1764547855214,-2313.85,0.00014246,2]
[395215109,1764547855224,-500.0,0.00014246,2]
[395215110,1764547855234,-5221.19,0.00014246,2]
[395215111,1764547855244,-3048.03,0.00014246,2]
[395215112,1764547855253,-3145.78,0.00014246,2]
[395215113,1764547855263,-10397.32,0.00014246,2]
[395215114,1764547855273,-500.0,0.00014246,2]
[395215115,1764547855282,-760.25,0.00014246,2]
[395215116,1764547855292,-500.0,0.00014246,2]
[395215117,1764547855301,-500.0,0.00014246,2]
[395215118,1764547855311,-500.0,0.00014246,2]
[395215119,1764547855321,-500.0,0.00014246,2]
[395215120,1764547855331,-2989.63,0.00014246,2]
[395215121,1764547855341,-837.63,0.00014246,2]
[395215122,1764547855351,-984.98,0.00014246,2]
[395215123,1764547855361,-500.0,0.00014246,2]
[395215124,1764547855371,-1081.9,0.00014246,2]
[395215125,1764547855380,-5982.17,0.00014246,2]
[395215126,1764547855390,-500.0,0.00014246,2]
[395215127,1764547855399,-1807.97,0.00014246,2]
[395215128,1764547855409,-500.0,0.00014246,2]
[395215129,1764547855418,-8291.1,0.00014246,2]
[395215130,1764547855427,-500.0,0.00014246,2]
[395215131,1764547855437,-500.0,0.00014246,2]
[395215132,1764547855450,-3531.24,0.00014246,2]
[395215133,1764547855460,-1985.68,0.00014246,2]
[395215134,1764547855469,-500.0,0.00014246,2]
[395215135,1764547855478,-5538.13,0.00014246,2]
[395215136,1764547855488,-500.0,0.00014246,2]
[395215137,1764547855497,-500.0,0.00014246,2]
[395215138,1764547855507,-500.0,0.00014246,2]
[395215139,1764547855516,-500.0,0.00014246,2]
[395215140,1764547855526,-500.0,0.00014246,2]
[395215141,1764547855535,-1615.27,0.00014246,2]
[395215142,1764547855545,-500.0,0.00014246,2]
[395215143,1764547855555,-500.0,0.00014246,2]
[395215144,1764547855564,-500.0,0.00014246,2]
[395215145,1764547855574,-1762.42,0.00014246,2]
[395215146,1764547855583,-500.0,0.00014246,2]
[395215147,1764547855593,-2706.0,0.00014246,2]
[395215148,1764547855602,-522.06,0.00014246,2]
[395215149,1764547855612,-1167.41,0.00014246,2]
[395215150,1764547855622,-2549.68,0.00014246,2]
[395215151,1764547855632,-893.99,0.00014246,2]
[395215152,1764547855641,-500.0,0.00014246,2]
[395215153,1764547855651,-500.0,0.00014246,2]
[395215154,1764547855661,-500.0,0.00014246,2]
[395215155,1764547855671,-500.0,0.00014246,2]
[395215156,1764547855680,-500.0,0.00014246,2]
[395215157,1764547855693,-500.0,0.00014246,2]
[395215158,1764547855703,-490.91206139,0.00014246,2]
[395215159,1764547855713,-739.84,0.00014246,2]
[395215160,1764547855722,-2706.58,0.00014246,2]
[395215161,1764547855732,-1888.96,0.00014246,2]
[395215162,1764547855742,-501.98,0.00014246,2]
[395215163,1764547855751,-765.97,0.00014246,2]
[395215164,1764547855761,-1636.34,0.00014246,2]
[395215165,1764547855771,-500.0,0.00014246,2]
[395215166,1764547855782,-931.35,0.00014246,2]
[395215167,1764547855792,-3871.71,0.00014246,2]
[395215168,1764547855801,-500.0,0.00014246,2]
[395215169,1764547855811,-2563.46,0.00014246,2]
[395215170,1764547855821,-666.7,0.00014246,2]
[395215171,1764547855831,-2450.73,0.00014246,2]
[395215172,1764547855841,-500.0,0.00014247,2]
[395215173,1764547855851,-1000.0,0.00014247,2]
[395215174,1764547855862,-1000.0,0.00014247,2]
[395215175,1764547855873,-1020.6472916,0.00014247,2]
[395215176,1764547855883,-1000.0,0.00014247,2]
[395215177,1764547855893,-669.01398835,0.00014247,2]
[395215178,1764547855904,-966.21424654,0.00014247,2]
[395215179,1764547855915,-1000.0,0.00014247,2]
[395215180,1764547855925,-1000.0,0.00014247,2]
[395215181,1764547855935,-515.04642198,0.00014247,2]
[395215182,1764547855951,-1000.0,0.00014247,2]
[395215183,1764547855961,-1000.0,0.00014247,2]
[395215184,1764547855971,-1000.0,0.00014247,2]
[395215185,1764547855981,-1000.0,0.00014247,2]
[395215186,1764547855991,-1000.0,0.00014247,2]
[395215187,1764547856001,-1000.0,0.00014247,2]
[395215188,1764547856011,-1000.0,0.00014247,2]
[395215189,1764547856023,-501.23290657,0.00014247,2]
[395215190,1764547856033,-1000.0,0.00014247,2]
[395215191,1764547856048,-1000.0,0.00014247,2]
[395215192,1764547856059,-500.49905482,0.00014247,2]
[395215193,1764547856070,-1000.69222527,0.00014247,2]
[395215194,1764547856080,-252.16841542,0.00014247,2]
[395215195,1764547856089,-1000.0,0.00014247,2]
[395215196,1764547856099,-1000.0,0.00014247,2]
[395215197,1764547856108,-1000.0,0.00014247,2]
[395215198,1764547856119,-1000.0,0.00014247,2]
[395215199,1764547856128,-1000.0,0.00014247,2]
[395215200,1764547856138,-1000.0,0.00014247,2]
[395215201,1764547856148,-1000.0,0.00014247,2]
[395215202,1764547856158,-1000.0,0.00014247,2]
[395215203,1764547856167,-1000.0,0.00014247,2]
[395215204,1764547856178,-1000.0,0.00014247,2]
[395215205,1764547856188,-1000.0,0.00014247,2]
[395215206,1764547856203,-1000.0,0.00014247,2]
[395215207,1764547856213,-704.95666144,0.00014247,2]
[395215208,1764547856222,-1000.0,0.00014247,2]
[395215209,1764547856233,-1000.0,0.00014247,2]
[395215210,1764547856244,-301.7532616,0.00014296,2]
[395215211,1764547856254,-301.7532616,0.00014296,2]
[395215212,1764547856263,-301.7532616,0.00014296,2]
[395215213,1764547856273,-301.7532616,0.00014296,2]
[395215214,1764547856282,-301.1433072,0.00014296,2]
[395215215,1764547856292,-248.71531821,0.00014299,2]
[395215216,1764547856301,-150.0,0.00014366,2]
[395215217,1764547856311,-1500.0,0.00014368,2]
[395215218,1764547856321,-1500.0,0.00014368,2]
[395215219,1764547856331,-1500.0,0.00014368,2]
[395215220,1764547856341,-1500.0,0.00014368,2]
[395215221,1764547856351,-1560.82183377,0.00014368,2]
[395215222,1764547856361,-1500.0,0.00014368,2]
[395215223,1764547856371,-1500.0,0.00014368,2]
[395215224,1764547856380,-1500.0,0.00014368,2]
[395215225,1764547856390,-1500.0,0.00014368,2]
[395215226,1764547856401,-1500.0,0.00014368,2]
[395215227,1764547856411,-1000.0,0.000144,2]
[395215228,1764547856421,-100000.0,0.00014444,2]
[395215229,1764547856432,-168.0,0.00014482,2]
[395215230,1764547856446,-168.0,0.0001449,2]
[395215231,1764547856455,-168.0,0.00014513,2]
[395215232,1764547856466,-500.0,0.00014514,2]
[395215233,1764547856478,-555.23,0.0001452,2]
[395215234,1764547856499,-500.0,0.0001452,2]
[395215235,1764547856510,-715.49,0.0001452,2]
[395215236,1764547856521,-500.0,0.0001452,2]
[395215237,1764547856532,-500.0,0.0001452,2]
[395215238,1764547856543,-1930.01,0.0001452,2]
[395215239,1764547856553,-550.14,0.0001452,2]
[395215240,1764547856564,-500.0,0.0001452,2]
[395215241,1764547856574,-500.0,0.0001452,2]
[395215242,1764547856585,-620.22,0.0001452,2]
[395215243,1764547856595,-1004.82,0.0001452,2]
[395215244,1764547856606,-500.0,0.0001452,2]
[395215245,1764547856617,-500.0,0.0001452,2]
[395215246,1764547856627,-500.0,0.0001452,2]
[395215247,1764547856638,-500.0,0.0001452,2]
[395215248,1764547856649,-553.97,0.0001452,2]
[395215249,1764547856660,-500.0,0.0001452,2]
[395215250,1764547856671,-1164.46,0.0001452,2]
[395215251,1764547856683,-500.0,0.0001452,2]
[395215252,1764547856698,-500.0,0.0001452,2]
[395215253,1764547856709,-500.0,0.0001452,2]
[395215254,1764547856719,-500.0,0.0001452,2]
[395215255,1764547856730,-500.0,0.0001452,2]
[395215256,1764547856741,-551.76,0.0001452,2]
[395215257,1764547856751,-500.0,0.0001452,2]
[395215258,1764547856762,-672.98,0.0001452,2]
[395215259,1764547856773,-500.0,0.0001452,2]
[395215260,1764547856784,-500.0,0.0001452,2]
[395215261,1764547856795,-500.0,0.0001452,2]
[395215262,1764547856805,-758.56,0.0001452,2]
[395215263,1764547856815,-500.0,0.0001452,2]
[395215264,1764547856826,-500.0,0.0001452,2]
[395215265,1764547856837,-500.0,0.0001452,2]
[395215266,1764547856847,-572.24,0.0001452,2]
[395215267,1764547856857,-1551.99,0.0001452,2]
[395215268,1764547856868,-500.0,0.0001452,2]
[395215269,1764547856878,-500.0,0.0001452,2]
[395215270,1764547856888,-593.28,0.0001452,2]
[395215271,1764547856899,-500.0,0.0001452,2]
[395215272,1764547856909,-500.0,0.0001452,2]
[395215273,1764547856919,-500.0,0.0001452,2]
[395215274,1764547856930,-500.0,0.0001452,2]
[395215275,1764547856943,-500.0,0.0001452,2]
[395215276,1764547856954,-1501.36,0.0001452,2]
[395215277,1764547856964,-500.0,0.0001452,2]
[395215278,1764547856974,-500.0,0.0001452,2]
[395215279,1764547856988,-1043.26,0.0001452,2]
[395215280,1764547856999,-1167.96,0.0001452,2]
[395215281,1764547857012,-875.49,0.0001452,2]
[395215282,1764547857026,-500.0,0.0001452,2]
[395215283,1764547857039,-775.42,0.0001452,2]
[395215284,1764547857052,-629.84438593,0.0001452,2]
[395215285,1764547857065,-500.0,0.0001452,2]
[395215286,1764547857076,-775.78,0.0001452,2]
[395215287,1764547857088,-500.0,0.0001452,2]
[395215288,1764547857099,-628.32,0.0001452,2]
[395215289,1764547857116,-500.0,0.0001452,2]
[395215290,1764547857127,-500.0,0.0001452,2]
[395215291,1764547857139,-677.04,0.0001452,2]
[395215292,1764547857150,-500.0,0.0001452,2]
[395215293,1764547857161,-407.45152759,0.0001452,2]
[395215294,1764547857171,-500.0,0.0001452,2]
[395215295,1764547857182,-657.5,0.0001452,2]
[395215296,1764547857197,-500.0,0.0001452,2]
[395215297,1764547857207,-500.0,0.0001452,2]
[395215298,1764547857218,-874.25,0.0001452,2]
[395215299,1764547857229,-500.0,0.0001452,2]
[395215300,1764547857239,-536.05,0.0001452,2]
[395215301,1764547857250,-500.0,0.0001452,2]
[395215302,1764547857260,-500.0,0.0001452,2]
[395215303,1764547857271,-500.0,0.0001452,2]
[395215304,1764547857281,-544.42,0.0001452,2]
[395215305,1764547857291,-2398.0,0.0001452,2]
[395215306,1764547857301,-500.0,0.0001452,2]
[395215307,1764547857311,-500.0,0.0001452,2]
[395215308,1764547857321,-500.0,0.0001452,2]
[395215309,1764547857332,-500.0,0.0001452,2]
[395215310,1764547857342,-587.57,0.0001452,2]
[395215311,1764547857353,-652.74,0.0001452,2]
[395215312,1764547857363,-845.98,0.0001452,2]
[395215313,1764547857373,-500.0,0.0001452,2]
[395215314,1764547857383,-500.0,0.0001452,2]
[395215315,1764547857393,-500.0,0.0001452,2]
[395215316,1764547857404,-500.0,0.0001452,2]
[395215317,1764547857414,-500.0,0.0001452,2]
[395215318,1764547857424,-656.44,0.0001452,2]
[395215319,1764547857435,-558.01,0.0001452,2]
[395215320,1764547857448,-500.0,0.0001452,2]
[395215321,1764547857459,-500.0,0.0001452,2]
[395215322,1764547857469,-500.0,0.0001452,2]
[395215323,1764547857480,-807.47,0.0001452,2]
[395215324,1764547857490,-544.86,0.0001452,2]
[395215325,1764547857500,-500.0,0.0001452,2]
[395215326,1764547857510,-500.0,0.0001452,2]
[395215327,1764547857520,-418.87229921,0.0001452,2]
[395215328,1764547857531,-500.0,0.0001452,2]
[395215329,1764547857541,-500.0,0.0001452,2]
[395215330,1764547857551,-500.0,0.0001452,2]
[395215331,1764547857562,-529.95,0.0001452,2]
[395215332,1764547857572,-500.0,0.0001452,2]
[395215333,1764547857582,-2030.27,0.0001452,2]
[395215334,1764547857591,-500.0,0.0001452,2]
[395215335,1764547857602,-500.0,0.0001452,2]
[395215336,1764547857612,-675.07,0.0001452,2]
[395215337,1764547857621,-500.0,0.0001452,2]
[395215338,1764547857632,-500.0,0.0001452,2]
[395215339,1764547857642,-1034.83,0.0001452,2]
[395215340,1764547857653,-500.0,0.0001452,2]
[395215341,1764547857662,-679.79,0.0001452,2]
[395215342,1764547857672,-948.53,0.0001452,2]
[395215343,1764547857682,-500.0,0.0001452,2]
[395215344,1764547857694,-2364.55,0.0001452,2]
[395215345,1764547857704,-809.24,0.0001452,2]
[395215346,1764547857713,-500.0,0.0001452,2]
[395215347,1764547857723,-500.0,0.0001452,2]
[395215348,1764547857733,-500.0,0.0001452,2]
[395215349,1764547857743,-772.8,0.0001452,2]
[395215350,1764547857753,-500.0,0.0001452,2]
[395215351,1764547857764,-500.0,0.0001452,2]
[395215352,1764547857773,-500.0,0.0001452,2]
[395215353,1764547857783,-500.0,0.0001452,2]
[395215354,1764547857793,-743.42,0.0001452,2]
[395215355,1764547857802,-500.0,0.0001452,2]
[395215356,1764547857812,-405.46704981,0.0001452,2]
[395215357,1764547857822,-500.0,0.0001452,2]
[395215358,1764547857832,-1229.64,0.0001452,2]
[395215359,1764547857842,-500.0,0.0001452,2]
[395215360,1764547857851,-500.0,0.0001452,2]
[395215361,1764547857860,-500.0,0.0001452,2]
[395215362,1764547857870,-1653.8,0.0001452,2]
[395215363,1764547857881,-500.0,0.0001452,2]
[395215364,1764547857894,-500.0,0.0001452,2]
[395215365,1764547857903,-952.37,0.0001452,2]
[395215366,1764547857914,-500.0,0.0001452,2]
[395215367,1764547857923,-500.0,0.0001452,2]
[395215368,1764547857934,-1065.54,0.0001452,2]
[395215369,1764547857947,-500.0,0.0001452,2]
[395215370,1764547857958,-500.0,0.0001452,2]
[395215371,1764547857968,-500.0,0.0001452,2]
[395215372,1764547857979,-611.17975187,0.0001452,2]
[395215373,1764547857989,-1163.63,0.0001452,2]
[395215374,1764547858000,-500.0,0.0001452,2]
[395215375,1764547858010,-774.67,0.0001452,2]
[395215376,1764547858023,-500.0,0.0001452,2]
[395215377,1764547858033,-500.0,0.0001452,2]
[395215378,1764547858047,-500.0,0.0001452,2]
[395215379,1764547858060,-500.0,0.0001452,2]
[395215380,1764547858071,-2289.13,0.0001452,2]
[395215381,1764547858081,-500.0,0.0001452,2]
[395215382,1764547858091,-690.1,0.0001452,2]
[395215383,1764547858101,-500.0,0.0001452,2]
[395215384,1764547858112,-500.0,0.0001452,2]
[395215385,1764547858123,-1102.2,0.0001452,2]
[395215386,1764547858132,-500.0,0.0001452,2]
[395215387,1764547858143,-500.0,0.0001452,2]
[395215388,1764547858153,-884.13,0.0001452,2]
[395215389,1764547858162,-700.77,0.0001452,2]